bitfinex/quotes_SOLUSD_20250625
["timestamp","ask_amount","ask_price","bid_price","bid_amount"]
[1750890917029,10.99499506,143.59,143.56,24.36516825]
[1750890917458,6.12,143.59,143.56,24.36516825]
[1750890918451,10.99499635,143.59,143.56,24.36516825]
[1750890918769,6.12,143.59,143.56,24.36516825]
[1750890921762,6.12,143.59,143.57,5.71551939]
[1750890922070,6.12,143.59,143.56,31.33087925]
[1750890922461,10.99506927,143.59,143.56,5.71551939]
[1750890923876,6.12,143.59,143.56,5.71551939]
[1750890924082,6.12,143.59,143.56,24.36516825]
[1750890924963,6.12,143.59,143.57,5.71551939]
[1750890925157,6.12,143.59,143.57,24.36516825]
[1750890926670,0.04,143.6,143.57,31.33027272]
[1750890926847,0.04,143.6,143.58,5.71551939]
[1750890927172,0.04,143.6,143.59,18.64964886]
[1750890927352,0.04,143.6,143.59,24.36516825]
[1750890928961,0.04,143.6,143.56,36.9353317]
[1750890929167,5.75551939,143.6,143.56,29.9699]
[1750890929373,0.04,143.6,143.56,42.65111278]
[1750890929582,0.04,143.6,143.56,35.68541939]
[1750890935469,4.87499129,143.59,143.56,35.68541939]
[1750890936781,5.71551939,143.58,143.56,28.46]
[1750890937783,4.8756704,143.57,143.56,28.46]
[1750890938283,10.59118979,143.57,143.54,18.64964886]
[1750890938491,5.71551939,143.56,143.54,18.64964886]
[1750890940079,10.59170222,143.56,143.54,18.64964886]
[1750890940590,5.71551939,143.55,143.5,5.71551939]
[1750890940799,4.87618283,143.56,143.49,18.64964886]
[1750890940800,5.71551939,143.53,143.49,18.64964886]
[1750890940957,5.71551939,143.52,143.49,28.42]
[1750890941155,5.71551939,143.52,143.46,8.51672711]
[1750890941384,5.71551939,143.51,143.47,28.46]
[1750890941557,5.71551939,143.51,143.48,18.64964886]
[1750890942182,5.71551939,143.49,143.45,28.46]
[1750890942362,10.5940128,143.49,143.45,28.46]
[1750890942563,10.5940128,143.49,143.46,18.64964886]
[1750890943471,10.5940128,143.49,143.44,12.70687413]
[1750890943472,5.71551939,143.48,143.44,18.66964886]
[1750890943673,5.71551939,143.48,143.45,28.46]
[1750890944195,5.71551939,143.48,143.44,0.02]
[1750890944196,5.71551939,143.47,143.44,0.02]
[1750890944373,5.71551939,143.48,143.44,34.19551939]
[1750890945182,5.71551939,143.48,143.44,28.48]
[1750890945384,5.16237192,143.5,143.44,28.48]
[1750890945385,5.71551939,143.49,143.44,34.19551939]
[1750890945597,10.59356817,143.5,143.45,24.36516825]
[1750890945890,5.71551939,143.49,143.45,24.36516825]
[1750890946055,10.59356817,143.5,143.45,24.36516825]
[1750890946258,10.59356817,143.5,143.45,31.33618139]
[1750890947182,5.71551939,143.5,143.45,31.33618139]
[1750890947483,5.71551939,143.5,143.46,5.71551939]
[1750890948271,10.5935722,143.5,143.46,5.71551939]
[1750890949371,10.5935722,143.5,143.47,18.64964886]
[1750890949573,180.68,143.52,143.47,18.64964886]
[1750890949574,186.39551939,143.52,143.47,52.86516825]
[1750890949882,191.27300154,143.52,143.47,59.8352212]
[1750890950787,186.39551939,143.52,143.49,18.64964886]
[1750890950977,180.68,143.52,143.49,18.64964886]
[1750890951491,191.27291821,143.52,143.49,18.64964886]
[1750890951701,191.27291821,143.52,143.48,18.64964886]
[1750890953878,10.59328811,143.51,143.48,18.64964886]
[1750890954987,4.87776872,143.51,143.48,18.64964886]
[1750890955284,191.27304487,143.52,143.48,18.64964886]
[1750890955503,165.27304487,143.52,143.48,25.61925555]
[1750890955983,159.55752548,143.52,143.48,31.33477494]
[1750890957786,165.27304487,143.52,143.48,25.61925555]
[1750890958697,165.27304487,143.52,143.48,18.64964886]
[1750890958876,5.71551939,143.51,143.48,18.64964886]
[1750890960997,10.59330715,143.51,143.48,18.64964886]
[1750890963110,10.59330715,143.51,143.44,6.99124744]
[1750890963111,5.71551939,143.5,143.44,6.99124744]
[1750890963292,5.71551939,143.48,143.45,47.08964886]
[1750890963773,5.71551939,143.49,143.45,47.08964886]
[1750890963969,5.71551939,143.49,143.45,52.80516825]
[1750890964198,5.71551939,143.49,143.45,59.77617995]
[1750890965498,10.59368743,143.5,143.45,59.77617995]
[1750890965799,4.87816804,143.5,143.46,5.71551939]
[1750890966791,5.71551939,143.5,143.45,59.77617995]
[1750890967504,4.87770887,143.51,143.45,52.80516825]
[1750890967505,5.71551939,143.49,143.45,52.80516825]
[1750890968581,5.71551939,143.49,143.45,47.08964886]
[1750890968977,150.55388471,143.48,143.44,0.02]
[1750890969310,5.71551939,143.46,143.44,0.02]
[1750890970985,10.59520826,143.46,143.44,0.02]
[1750890971385,4.87968887,143.46,143.44,0.02]
[1750890972309,150.1274,143.48,143.44,0.02]
[1750890972504,155.84291939,143.48,143.44,28.48]
[1750890972885,160.72180784,143.48,143.44,34.19551939]
[1750890975204,160.72180784,143.48,143.44,28.48]
[1750890975501,5.71551939,143.47,143.44,28.48]
[1750890976292,160.72180784,143.48,143.44,28.48]
[1750890977892,153.47888845,143.48,143.44,34.19551939]
[1750890978416,159.19440784,143.48,143.44,34.19551939]
[1750890981999,159.19440784,143.48,143.44,28.48]
[1750890989026,159.19440784,143.48,143.44,35.45153758]
[1750890989230,153.47888845,143.48,143.44,41.16705697]
[1750890989527,153.47888845,143.48,143.44,34.19551939]
[1750890989933,159.19440784,143.48,143.44,28.48]
[1750890993236,153.47888845,143.48,143.44,28.48]
[1750890993436,159.19440784,143.48,143.44,34.19551939]
[1750890996443,159.19440784,143.48,143.44,28.48]
[1750890999742,148.6,143.48,143.44,28.48]
[1750891000046,148.6,143.48,143.45,5.71551939]
[1750891000349,148.6,143.48,143.46,5.71551939]
[1750891003360,185.19338629,143.51,143.46,12.68600301]
[1750891003657,5.15423516,143.5,143.46,12.68600301]
[1750891005155,5.15423516,143.5,143.47,18.64964886]
[1750891005360,174.6,143.51,143.47,52.72516825]
[1750891005746,174.6,143.51,143.48,5.71551939]
[1750891005747,148.6,143.51,143.48,5.71551939]
[1750891008447,148.6,143.51,143.48,12.68502956]
[1750891009163,6.08,143.52,143.49,18.64964886]
[1750891009371,6.08,143.52,143.5,5.71551939]
[1750891009660,26.0,143.53,143.5,34.07551939]
[1750891010239,148.64,143.54,143.51,5.71551939]
[1750891010435,148.64,143.54,143.51,12.68348419]
[1750891013563,0.04,143.54,143.51,6.9679648]
[1750891013743,0.04,143.54,143.51,18.64964886]
[1750891014772,0.04,143.54,143.51,25.6177284]
[1750891016543,5.75551939,143.54,143.51,25.6177284]
[1750891017770,0.04,143.54,143.51,25.6177284]
[1750891018152,5.75551939,143.54,143.5,28.36]
[1750891018452,5.71551939,143.52,143.5,28.36]
[1750891019972,10.63220881,143.54,143.5,28.36]
[1750891020270,0.04,143.54,143.5,41.0438395]
[1750891020864,0.04,143.54,143.53,5.71551939]
[1750891021045,0.04,143.54,143.53,47.06964886]
[1750891021246,0.04,143.54,143.53,52.78516825]
[1750891021672,0.04,143.54,143.53,24.36516825]
[1750891021875,0.04,143.54,143.53,18.64964886]
[1750891023779,5.75551939,143.54,143.5,18.64964886]
[1750891025275,5.71551939,143.53,143.47,35.38986794]
[1750891025454,5.71551939,143.53,143.48,24.36516825]
[1750891025656,4.87708301,143.53,143.49,5.71551939]
[1750891025974,5.75551939,143.54,143.52,24.36516825]
[1750891025975,0.04,143.54,143.52,24.36516825]
[1750891026151,0.04,143.54,143.53,5.71551939]
[1750891026353,0.04,143.54,143.52,18.64964886]
[1750891026655,0.04,143.54,143.53,24.36516825]
[1750891028350,0.04,143.54,143.53,18.64964886]
[1750891028550,0.04,143.54,143.52,5.71551939]
[1750891028766,0.04,143.54,143.52,18.64964886]
[1750891029887,0.04,143.54,143.51,5.71551939]
[1750891030174,0.04,143.54,143.51,24.36516825]
[1750891030894,0.04,143.54,143.51,18.64964886]
[1750891034280,5.71551939,143.53,143.49,5.71551939]
[1750891034487,5.71551939,143.53,143.49,18.64964886]
[1750891035199,10.59269425,143.53,143.49,18.64964886]
[1750891035485,10.59269425,143.53,143.49,24.36516825]
[1750891037684,10.63235207,143.54,143.49,31.33417754]
[1750891037891,10.63235207,143.54,143.5,5.71551939]
[1750891038890,10.63235207,143.54,143.49,31.33417754]
[1750891039383,10.63235207,143.54,143.49,24.36516825]
[1750891039986,10.63235207,143.54,143.49,31.33422222]
[1750891042384,4.91683268,143.54,143.5,5.71551939]
[1750891043882,4.91683268,143.54,143.5,12.6841444]
[1750891044577,0.04,143.54,143.51,24.36516825]
[1750891047196,0.04,143.54,143.51,18.64964886]
[1750891050080,0.04,143.54,143.51,24.36516825]
[1750891051598,0.04,143.54,143.51,31.33321425]
[1750891051799,0.04,143.54,143.53,5.71551939]
[1750891052098,0.04,143.54,143.53,12.68270395]
[1750891053601,0.04,143.54,143.52,18.64964886]
[1750891054601,164.39032786,143.58,143.52,18.64964886]
[1750891054776,5.71551939,143.55,143.52,18.64964886]
[1750891055972,10.59187959,143.55,143.52,18.64964886]
[1750891056597,4.8763602,143.55,143.52,18.64964886]
[1750891057070,5.71551939,143.55,143.52,18.64964886]
[1750891058979,10.59152942,143.56,143.52,18.64964886]
[1750891060600,5.71551939,143.55,143.52,18.64964886]
[1750891061308,10.59199007,143.55,143.52,18.64964886]
[1750891063502,5.71551939,143.54,143.51,28.36]
[1750891065092,10.59199007,143.55,143.51,28.36]
[1750891065702,5.22271851,143.54,143.51,28.36]
[1750891066202,5.22271851,143.53,143.51,28.36]
[1750891066417,10.59199007,143.55,143.51,28.36]
[1750891066609,10.09943569,143.54,143.51,28.36]
[1750891066911,5.22272033,143.53,143.51,28.36]
[1750891067104,4.87671536,143.54,143.51,28.36]
[1750891067294,5.22272152,143.53,143.51,28.36]
[1750891067494,4.87671536,143.54,143.51,28.36]
[1750891067794,5.22272152,143.53,143.51,28.36]
[1750891067998,4.87671536,143.54,143.51,28.36]
[1750891068206,5.22272152,143.53,143.51,28.36]
[1750891068499,4.87671536,143.54,143.51,28.36]
[1750891068707,10.09977604,143.53,143.51,28.36]
[1750891068906,4.87705452,143.53,143.51,28.36]
[1750891069202,5.22287013,143.52,143.5,24.36516825]
[1750891069411,4.87705452,143.53,143.5,24.36516825]
[1750891069605,5.22287131,143.52,143.5,24.36516825]
[1750891069802,4.87705452,143.53,143.5,24.36516825]
[1750891070103,5.22287249,143.52,143.5,24.36516825]
[1750891070306,4.87705452,143.53,143.5,24.36516825]
[1750891070505,5.22287249,143.52,143.5,24.36516825]
[1750891070804,4.87705452,143.53,143.5,24.36516825]
[1750891071105,5.22287131,143.52,143.5,24.36516825]
[1750891071439,4.87705452,143.53,143.5,24.36516825]
[1750891071583,5.22287131,143.52,143.5,24.36516825]
[1750891071784,4.87705452,143.53,143.5,24.36516825]
[1750891071984,5.22287131,143.52,143.5,24.36516825]
[1750891072202,4.87705452,143.53,143.5,24.36516825]
[1750891072392,5.22287249,143.52,143.5,24.36516825]
[1750891072605,4.87705452,143.53,143.5,24.36516825]
[1750891072807,5.22287131,143.52,143.5,24.36516825]
[1750891073007,4.87705452,143.53,143.5,24.36516825]
[1750891073316,10.10030909,143.52,143.5,24.36516825]
[1750891073533,10.10030909,143.52,143.49,18.64964886]
[1750891073534,4.8774366,143.52,143.49,18.64964886]
[1750891074212,5.22344544,143.51,143.49,18.64964886]
[1750891074512,4.8774366,143.52,143.49,18.64964886]
[1750891074710,5.22344999,143.51,143.49,18.64964886]
[1750891074886,4.8774366,143.52,143.49,18.64964886]
[1750891075088,5.22345208,143.51,143.49,18.64964886]
[1750891075310,4.8774366,143.52,143.49,18.64964886]
[1750891075511,5.22345026,143.51,143.49,18.64964886]
[1750891075833,4.8774366,143.52,143.49,18.64964886]
[1750891076125,5.2234509,143.51,143.49,18.64964886]
[1750891076292,4.8774366,143.52,143.49,18.64964886]
[1750891076494,5.22345181,143.51,143.49,18.64964886]
[1750891076693,4.8774366,143.52,143.49,18.64964886]
[1750891076893,5.22345299,143.51,143.49,18.64964886]
[1750891077110,4.8774366,143.52,143.49,18.64964886]
[1750891077301,5.2234509,143.51,143.49,18.64964886]
[1750891077501,4.8774366,143.52,143.49,18.64964886]
[1750891077715,5.22344999,143.51,143.49,18.64964886]
[1750891077914,10.59295599,143.52,143.49,18.64964886]
[1750891078220,5.22345181,143.51,143.49,18.64964886]
[1750891078519,5.22352581,143.5,143.49,18.64964886]
[1750891078890,10.59295599,143.52,143.49,18.64964886]
[1750891079107,5.22348922,143.51,143.49,18.64964886]
[1750891079312,10.59295599,143.52,143.49,18.64964886]
[1750891079514,5.22345299,143.51,143.49,18.64964886]
[1750891079721,4.8774366,143.52,143.49,18.64964886]
[1750891079904,5.2234509,143.51,143.49,18.64964886]
[1750891080223,6.52729402,143.54,143.5,5.71551939]
[1750891080424,5.2229546,143.53,143.5,5.71551939]
[1750891080598,5.2229546,143.52,143.5,5.71551939]
[1750891080796,5.71551939,143.54,143.5,5.71551939]
[1750891080992,5.22295369,143.53,143.5,5.71551939]
[1750891081194,5.22295369,143.52,143.5,5.71551939]
[1750891081400,10.59232779,143.54,143.49,25.61853932]
[1750891081615,10.10018517,143.53,143.5,5.71551939]
[1750891081804,5.22307782,143.52,143.49,24.36516825]
[1750891082005,5.22307782,143.51,143.49,24.36516825]
[1750891082202,10.59262674,143.53,143.49,24.36516825]
[1750891082409,5.22320433,143.52,143.49,24.36516825]
[1750891082609,5.22320433,143.51,143.49,24.36516825]
[1750891082825,10.59262674,143.53,143.49,24.36516825]
[1750891083026,5.22320196,143.52,143.49,24.36516825]
[1750891083209,5.22320196,143.51,143.49,24.36516825]
[1750891083535,10.59262674,143.53,143.49,24.36516825]
[1750891083694,5.22320433,143.52,143.49,24.36516825]
[1750891083893,5.22320433,143.51,143.49,24.36516825]
[1750891084092,10.59262674,143.53,143.49,24.36516825]
[1750891084332,5.22320433,143.52,143.49,24.36516825]
[1750891084534,5.22320433,143.51,143.49,24.36516825]
[1750891084823,10.59262674,143.53,143.49,24.36516825]
[1750891085028,5.22320196,143.52,143.49,24.36516825]
[1750891085238,5.22320196,143.51,143.49,24.36516825]
[1750891085535,10.59262674,143.53,143.49,24.36516825]
[1750891085694,5.22320196,143.52,143.49,24.36516825]
[1750891085900,5.22320196,143.51,143.49,24.36516825]
[1750891086098,10.59262674,143.53,143.49,24.36516825]
[1750891086306,5.22320196,143.52,143.49,24.36516825]
[1750891086522,5.22320196,143.51,143.49,24.36516825]
[1750891086726,10.59262674,143.53,143.49,24.36516825]
[1750891086908,5.22320196,143.52,143.49,24.36516825]
[1750891087223,5.22320196,143.51,143.49,24.36516825]
[1750891087425,10.59262674,143.53,143.49,24.36516825]
[1750891087630,5.22320196,143.52,143.49,24.36516825]
[1750891087812,5.22320196,143.51,143.49,24.36516825]
[1750891088111,10.59262674,143.53,143.49,24.36516825]
[1750891088433,5.22320433,143.52,143.49,24.36516825]
[1750891088613,5.22320433,143.51,143.49,24.36516825]
[1750891088817,10.59262674,143.53,143.49,24.36516825]
[1750891089017,5.22320196,143.52,143.49,24.36516825]
[1750891089216,5.22320196,143.51,143.49,24.36516825]
[1750891089527,10.59262674,143.53,143.49,24.36516825]
[1750891089733,5.22320196,143.52,143.49,24.36516825]
[1750891089936,5.22320196,143.51,143.49,24.36516825]
[1750891090116,4.87710735,143.53,143.49,24.36516825]
[1750891090311,5.22320194,143.52,143.44,0.02]
[1750891090515,3.65923697,143.49,143.44,10.65054418]
[1750891090726,5.22320194,143.48,143.45,18.64964886]
[1750891090920,3.65923697,143.5,143.45,22.30888583]
[1750891091109,5.22457273,143.49,143.45,22.30888583]
[1750891091310,5.22457273,143.48,143.45,22.30888583]
[1750891091605,3.65923697,143.48,143.45,18.64964886]
[1750891091805,5.22461509,143.47,143.44,47.02964886]
[1750891092005,3.65923697,143.48,143.44,47.02964886]
[1750891092227,5.22490233,143.47,143.44,47.02964886]
[1750891092413,5.72170381,143.48,143.44,47.02964886]
[1750891092615,5.22490233,143.47,143.44,47.02964886]
[1750891092823,10.60066505,143.48,143.44,47.02964886]
[1750891093434,10.94670432,143.47,143.44,18.66964886]
[1750891093619,5.72170381,143.47,143.44,18.66964886]
[1750891093810,5.22514925,143.46,143.44,18.66964886]
[1750891094010,5.72170381,143.47,143.44,18.66964886]
[1750891094234,5.22522925,143.46,143.44,18.66964886]
[1750891094418,10.60100027,143.47,143.44,18.66964886]
[1750891094625,5.22522925,143.46,143.44,18.66964886]
[1750891094806,10.60100027,143.47,143.44,18.66964886]
[1750891095009,5.22522925,143.46,143.44,18.66964886]
[1750891095208,10.60100027,143.47,143.44,18.66964886]
[1750891095209,4.87929646,143.47,143.44,18.66964886]
[1750891095403,5.22523043,143.46,143.44,18.66964886]
[1750891095712,10.60058091,143.48,143.44,18.66964886]
[1750891095930,5.22498434,143.47,143.44,18.66964886]
[1750891096233,10.60058091,143.48,143.44,18.66964886]
[1750891096419,5.22498197,143.47,143.44,18.66964886]
[1750891096620,10.60058091,143.48,143.44,18.66964886]
[1750891096920,5.22498197,143.47,143.44,18.66964886]
[1750891097222,10.60058091,143.48,143.44,18.66964886]
[1750891097421,5.22498197,143.47,143.44,18.66964886]
[1750891097642,10.60058091,143.48,143.44,18.66964886]
[1750891097836,5.22498197,143.47,143.44,18.66964886]
[1750891098012,5.72170381,143.47,143.44,18.66964886]
[1750891098215,5.72170381,143.46,143.44,18.66964886]
[1750891098444,5.72170381,143.47,143.44,18.66964886]
[1750891099545,5.22508169,143.46,143.44,18.66964886]
[1750891099724,5.72170381,143.47,143.44,18.66964886]
[1750891099925,5.22522925,143.46,143.44,18.66964886]
[1750891100127,10.60058091,143.48,143.44,18.66964886]
[1750891100439,18.72314939,143.5,143.44,18.66964886]
[1750891100440,5.22498434,143.47,143.44,31.36283698]
[1750891100644,10.60023463,143.49,143.45,5.72170381]
[1750891100860,5.2249796,143.48,143.44,31.36283698]
[1750891101046,5.2249796,143.47,143.44,31.36283698]
[1750891101346,10.60023463,143.49,143.44,31.36283698]
[1750891101529,5.22473708,143.48,143.44,31.36283698]
[1750891101727,5.72170381,143.5,143.46,5.72170381]
[1750891101936,5.22434232,143.49,143.47,18.64964886]
[1750891102135,183.92608839,143.51,143.47,18.64964886]
[1750891102316,5.22421436,143.5,143.47,18.64964886]
[1750891102516,5.22421436,143.49,143.47,18.64964886]
[1750891102744,5.72170381,143.5,143.47,18.64964886]
[1750891102919,5.22421673,143.49,143.47,18.64964886]
[1750891103122,5.72170381,143.5,143.47,18.64964886]
[1750891103331,5.22421554,143.49,143.47,18.64964886]
[1750891103661,5.72170381,143.5,143.47,18.64964886]
[1750891103819,5.22417985,143.49,143.47,18.64964886]
[1750891104020,5.72170381,143.5,143.47,18.64964886]
[1750891104220,5.22417866,143.49,143.47,18.64964886]
[1750891104521,5.72170381,143.5,143.47,18.64964886]
[1750891104819,5.22421554,143.49,143.47,18.64964886]
[1750891105019,5.72170381,143.5,143.46,12.69200892]
[1750891105219,5.22421673,143.49,143.47,18.64964886]
[1750891105523,5.72170381,143.5,143.47,18.64964886]
[1750891105720,5.22421554,143.49,143.47,18.64964886]
[1750891106051,5.72170381,143.5,143.47,18.64964886]
[1750891106253,5.22421554,143.49,143.47,18.64964886]
[1750891106549,6.52729402,143.52,143.48,5.72170381]
[1750891106764,5.72170381,143.55,143.5,24.37135267]
[1750891106938,5.22274294,143.54,143.51,5.72170381]
[1750891107131,5.22274294,143.53,143.52,5.72170381]
[1750891107826,5.22274294,143.53,143.52,59.69902268]
[1750891108031,147.32651939,143.56,143.53,18.64964886]
[1750891108258,5.22239685,143.55,143.53,24.37135267]
[1750891108426,5.22239685,143.54,143.53,24.37135267]
[1750891109858,5.22239685,143.54,143.53,25.61683342]
[1750891110051,5.22239685,143.54,143.53,31.33853723]
[1750891110652,5.22239685,143.54,143.53,18.64964886]
[1750891110861,5.22239685,143.54,143.52,41.04935245]
[1750891111050,5.72170381,143.56,143.52,41.04935245]
[1750891111366,10.94392971,143.55,143.52,28.36]
[1750891111565,5.2222259,143.54,143.52,28.36]
[1750891111741,5.2222259,143.53,143.52,28.36]
[1750891120266,5.2222259,143.53,143.51,18.64964886]
[1750891120561,5.72170381,143.54,143.52,28.36]
[1750891120771,5.22255199,143.53,143.52,28.36]
[1750891121275,5.72170381,143.54,143.52,28.36]
[1750891122179,5.72170381,143.54,143.51,18.64964886]
[1750891122343,5.72170381,143.54,143.52,28.36]
[1750891123363,5.21886963,143.53,143.52,28.36]
[1750891126163,10.94057344,143.53,143.52,28.36]
[1750891126468,10.94057344,143.53,143.5,46.98964886]
[1750891126643,5.72170381,143.53,143.5,46.98964886]
[1750891127470,5.72170381,143.52,143.5,28.34]
[1750891129064,5.72170381,143.52,143.49,6.96886264]
[1750891129264,5.72170381,143.52,143.5,28.34]
[1750891130649,5.72170381,143.53,143.5,35.30844142]
[1750891134374,26.0,143.55,143.5,41.03014523]
[1750891134575,5.21415111,143.54,143.5,41.03014523]
[1750891134876,31.72170381,143.55,143.5,41.03014523]
[1750891135060,5.21415111,143.54,143.5,41.03014523]
[1750891135375,31.72170381,143.55,143.5,41.03014523]
[1750891135564,5.21392692,143.54,143.52,24.37135267]
[1750891135764,5.72170381,143.57,143.53,34.06170381]
[1750891136149,5.21328031,143.56,143.53,34.06170381]
[1750891136349,5.72170381,143.58,143.54,6.96669917]
[1750891136578,5.21067966,143.57,143.55,28.34]
[1750891136749,5.21067966,143.56,143.55,28.34]
[1750891136946,10.93238347,143.56,143.51,8.60318064]
[1750891137172,5.72170381,143.53,143.51,28.34]
[1750891137374,5.72170381,143.52,143.51,28.34]
[1750891139971,10.59877358,143.53,143.51,28.34]
[1750891140678,4.8763497,143.55,143.51,28.34]
[1750891140858,5.21277471,143.54,143.51,28.34]
[1750891141056,5.72170381,143.55,143.51,28.34]
[1750891141280,5.72170381,143.54,143.51,28.34]
[1750891141858,30.87607948,143.56,143.51,28.34]
[1750891142180,10.59841704,143.54,143.51,28.34]
[1750891142478,5.72170381,143.54,143.51,28.34]
[1750891142678,10.59846121,143.54,143.51,28.34]
[1750891143549,5.72170381,143.54,143.51,28.34]
[1750891143752,153.0482232,143.56,143.52,18.64964886]
[1750891143952,5.21277773,143.55,143.52,18.64964886]
[1750891144169,153.0482232,143.56,143.52,25.61715268]
[1750891144365,5.21252999,143.55,143.52,25.61715268]
[1750891144573,153.0482232,143.56,143.52,25.61715268]
[1750891144777,5.21197367,143.55,143.52,25.61715268]
[1750891144968,153.0482232,143.56,143.52,25.61715268]
[1750891145177,5.21197367,143.55,143.52,25.61715268]
[1750891145356,153.0482232,143.56,143.52,25.61715268]
[1750891146079,157.92423743,143.56,143.52,25.61715268]
[1750891146678,153.0482232,143.56,143.52,25.61715268]
[1750891146883,6.04,143.57,143.54,5.72170381]
[1750891147062,6.04,143.57,143.55,28.34]
[1750891147672,0.04,143.59,143.55,34.06170381]
[1750891147875,0.04,143.59,143.56,5.72170381]
[1750891147876,5.20842986,143.58,143.56,5.72170381]
[1750891148060,0.04,143.59,143.56,5.72170381]
[1750891148386,0.04,143.59,143.57,5.72170381]
[1750891148681,0.04,143.59,143.58,28.38]
[1750891151071,5.76170381,143.59,143.56,28.36]
[1750891151472,0.04,143.59,143.56,28.36]
[1750891153898,0.04,143.59,143.56,34.08170381]
[1750891156394,0.04,143.59,143.56,28.36]
[1750891156990,5.76170381,143.59,143.56,28.36]
[1750891157180,5.76170381,143.59,143.55,24.37135267]
[1750891157997,0.04,143.59,143.55,31.33754397]
[1750891158293,0.04,143.59,143.56,28.34]
[1750891158697,0.04,143.59,143.56,41.02722217]
[1750891159090,0.04,143.59,143.56,34.06170381]
[1750891159274,0.04,143.59,143.56,28.34]
[1750891159473,5.76170381,143.59,143.56,28.34]
[1750891160399,5.72170381,143.58,143.56,28.34]
[1750891160596,5.72170381,143.57,143.54,28.34]
[1750891162579,4.8756704,143.57,143.54,28.34]
[1750891162778,10.59737421,143.57,143.54,28.34]
[1750891165097,5.72170381,143.56,143.54,28.34]
[1750891165279,5.72170381,143.55,143.54,28.34]
[1750891165695,5.72170381,143.56,143.54,28.34]
[1750891166502,4.8763497,143.55,143.54,28.34]
[1750891166803,4.8763497,143.55,143.52,28.34]
[1750891168607,10.59805351,143.55,143.52,28.34]
[1750891168804,5.72170381,143.54,143.52,28.34]
[1750891168982,5.72170381,143.53,143.49,18.66964886]
[1750891169183,5.72170381,143.52,143.5,28.34]
[1750891170599,5.72170381,143.53,143.5,28.34]
[1750891172182,5.72170381,143.52,143.5,28.34]
[1750891173091,10.59915108,143.52,143.5,28.34]
[1750891176114,4.87804878,143.5,143.49,0.02]
[1750891176406,10.59975259,143.5,143.49,0.02]
[1750891177608,11.0262373,143.5,143.49,0.02]
[1750891178815,36.07454816,143.51,143.49,0.02]
[1750891178986,26.0,143.5,143.49,0.02]
[1750891179180,31.72170381,143.5,143.49,0.02]
[1750891180001,36.59975259,143.5,143.49,0.02]
[1750891183525,31.30453349,143.5,143.49,0.02]
[1750891183691,37.0262373,143.5,143.49,0.02]
[1750891186620,184.35275669,143.5,143.49,0.02]
[1750891193198,37.0262373,143.5,143.49,0.02]
[1750891193393,43.81018924,143.5,143.49,0.02]
[1750891194226,0.28432314,143.49,143.46,0.02]
[1750891194520,32.14818852,143.47,143.46,0.02]
[1750891195535,37.02725731,143.47,143.46,0.02]
[1750891198436,36.6007726,143.47,143.46,0.02]
[1750891199530,30.87906879,143.47,143.46,0.02]
[1750891199733,36.6007726,143.47,143.46,0.02]
[1750891201326,37.02725731,143.47,143.46,0.02]
[1750891208742,40.51480859,143.47,143.46,0.02]
[1750891209121,64.33611233,143.47,143.46,0.02]
[1750891209333,0.42648471,143.46,143.45,0.02]
[1750891209517,11.3198434,143.46,143.45,0.02]
[1750891209824,6.14818852,143.46,143.45,0.02]
[1750891210246,24.79783738,143.46,143.45,0.02]
[1750891210535,42.74964137,143.45,143.44,0.02]
[1750891210731,48.25959244,143.45,143.44,0.02]
[1750891212118,48.11743087,143.45,143.44,0.02]
[1750891212328,48.25959244,143.45,143.44,0.02]
[1750891212725,53.98129625,143.45,143.44,0.02]
[1750891216649,48.25959244,143.45,143.44,0.02]
[1750891220670,48.23959244,143.45,143.44,0.02]
[1750891220829,42.19959244,143.45,143.44,0.02]
[1750891221032,48.23959244,143.45,143.44,0.02]
[1750891221345,42.51788863,143.45,143.44,0.02]
[1750891221740,43.06793756,143.45,143.44,0.02]
[1750891221940,48.23959244,143.45,143.44,0.02]
[1750891222763,41.77310773,143.45,143.44,0.02]
[1750891222942,36.60145285,143.45,143.44,0.02]
[1750891224342,41.7952395,143.45,143.44,0.02]
[1750891228875,15.7952395,143.45,143.44,0.02]
[1750891232249,21.94342802,143.45,143.44,0.02]
[1750891232940,16.22172421,143.45,143.44,0.02]
[1750891234944,16.2366421,143.45,143.44,0.02]
[1750891235147,21.95834591,143.45,143.44,0.02]
[1750891235344,21.95834591,143.45,143.43,0.02]
[1750891235345,0.14216157,143.44,143.43,0.02]
[1750891235645,43.07859687,143.44,143.4,0.02]
[1750891235847,31.72170381,143.41,143.4,0.02]